fUSD/lending_fUSD_20250826
["ID","MTS","AMOUNT","RATE_DAILY","PERIOD"]
[381475851,1756230648430,-151.0,0.000248,7]
[381475853,1756230648439,-1760.456621,0.000248,7]
[381475855,1756230648448,-151.0,0.000248,7]
[381475857,1756230648457,-683.817013,0.000248,7]
[381475859,1756230648467,-440.090666,0.000248,7]
[381475861,1756230648476,-174.232383,0.000248,7]
[381475863,1756230648485,-683.817013,0.000248,7]
[381475864,1756230648494,-151.0,0.000248,7]
[381475866,1756230648503,-440.090666,0.000248,7]
[381475868,1756230648512,-1800.0,0.00024829,2]
[381475870,1756230648521,-3000.0,0.00024829,2]
[381475872,1756230648530,-7341.52731202,0.0002484,4]
[381475874,1756230648539,-6088.06826466,0.0002484,4]
[381475876,1756230648548,-6419.15269785,0.0002484,4]
[381475878,1756230648557,-500.0,0.00024873,2]
[381475880,1756230648566,-500.0,0.00024873,2]
[381475882,1756230648575,-500.0,0.00024873,2]
[381475884,1756230648584,-500.0,0.00024873,2]
[381475886,1756230648593,-500.0,0.00024873,2]
[381475888,1756230648602,-300.0,0.00024899,10]
[381475890,1756230648611,-300.0,0.00024899,10]
[381475892,1756230648621,-300.0,0.00024899,10]
[381475894,1756230648630,-300.0,0.00024899,10]
[381475895,1756230648644,-151.195506,0.000249,7]
[381475898,1756230648654,-228.882476,0.000249,7]
[381475900,1756230648664,-151.0,0.000249,7]
[381475901,1756230648673,-228.882476,0.000249,7]
[381475903,1756230648683,-151.0,0.000249,7]
[381475905,1756230648692,-228.882476,0.000249,7]
[381475907,1756230648701,-228.882476,0.000249,7]
[381475909,1756230648713,-151.0,0.000249,7]
[381475911,1756230648722,-151.0,0.000249,7]
[381475913,1756230648731,-273.123243,0.000249,7]
[381475915,1756230648741,-151.0,0.000249,7]
[381475917,1756230648751,-151.0,0.000249,7]
[381475919,1756230648761,-273.123243,0.000249,7]
[381475921,1756230648770,-151.0,0.000249,7]
[381475923,1756230648779,-273.123243,0.000249,7]
[381475925,1756230648788,-151.0,0.000249,7]
[381475927,1756230648797,-273.123243,0.000249,7]
[381475929,1756230648807,-394.74764,0.000249,7]
[381475930,1756230648817,-151.0,0.000249,7]
[381475932,1756230648826,-151.0,0.000249,7]
[381475934,1756230648839,-394.74764,0.000249,7]
[381475936,1756230648855,-394.74764,0.000249,7]
[381475938,1756230648864,-151.0,0.000249,7]
[381475940,1756230648874,-394.74764,0.000249,7]
[381475942,1756230648883,-151.0,0.000249,7]
[381475944,1756230648892,-151.0,0.000249,7]
[381475946,1756230648902,-151.0,0.000249,7]
[381475948,1756230648911,-151.0,0.000249,7]
[381475950,1756230648921,-151.0,0.000249,7]
[381475952,1756230648931,-151.0,0.000249,7]
[381475954,1756230648941,-151.0,0.000249,7]
[381475956,1756230648951,-151.0,0.000249,7]
[381475958,1756230648961,-151.0,0.000249,7]
[381475960,1756230648971,-151.0,0.000249,7]
[381475962,1756230648980,-151.0,0.000249,7]
[381475964,1756230648989,-208.564042,0.000249,7]
[381475966,1756230648998,-151.0,0.000249,7]
[381475968,1756230649008,-151.0,0.000249,7]
[381475970,1756230649017,-151.0,0.000249,7]
[381475972,1756230649027,-151.0,0.000249,7]
[381475974,1756230649036,-151.0,0.000249,7]
[381475976,1756230649046,-151.0,0.000249,7]
[381475978,1756230649056,-151.0,0.000249,7]
[381475980,1756230649065,-151.0,0.000249,7]
[381475982,1756230649075,-151.0,0.000249,7]
[381475984,1756230649083,-151.0,0.000249,7]
[381475986,1756230649092,-151.0,0.000249,7]
[381475988,1756230649102,-490.731049,0.000249,7]
[381475990,1756230649111,-490.731049,0.000249,7]
[381475992,1756230649122,-490.731049,0.000249,7]
[381475994,1756230649131,-490.731049,0.000249,7]
[381475995,1756230649140,-30372.91,0.000249,2]
[381475997,1756230649150,-733.32410921,0.000249,2]
[381475999,1756230649160,-500.0,0.000249,9]
[381476001,1756230649170,-614497.467539,0.000249,2]
[381476003,1756230649180,-23123.16488403,0.000249,2]
[381476005,1756230649190,-151.0,0.000249,7]
[381476007,1756230649200,-151.0,0.000249,7]
[381476009,1756230649209,-151.0,0.000249,7]
[381476011,1756230649218,-6581.236368,0.000249,7]
[381476013,1756230649227,-151.0,0.000249,7]
[381476015,1756230649237,-6581.236368,0.000249,7]
[381476017,1756230649247,-402.244264,0.000249,7]
[381476019,1756230649256,-6581.236368,0.000249,7]
[381476021,1756230649266,-6581.236368,0.000249,7]
[381476023,1756230649275,-402.244264,0.000249,7]
[381476025,1756230649284,-1760.456621,0.000249,7]
[381476027,1756230649293,-402.244264,0.000249,7]
[381476029,1756230649303,-1760.456621,0.000249,7]
[381476031,1756230649312,-440.090666,0.000249,7]
[381476033,1756230649321,-402.244264,0.000249,7]
[381476035,1756230649330,-1760.456621,0.000249,7]
[381476037,1756230649340,-683.817013,0.000249,7]
[381476039,1756230649350,-440.090666,0.000249,7]
[381476041,1756230649359,-151.0,0.000249,7]
[381476043,1756230649368,-151.0,0.000249,7]
[381476045,1756230649377,-1760.456621,0.000249,7]
[381476046,1756230649386,-683.817013,0.000249,7]
[381476048,1756230649395,-440.090666,0.000249,7]
[381476050,1756230649407,-174.232383,0.000249,7]
[381476052,1756230649417,-683.817013,0.000249,7]
[381476054,1756230649426,-151.0,0.000249,7]
[381476056,1756230649436,-600.0,0.00024904,2]
[381476058,1756230649446,-171.0,0.00024932,7]
[381476060,1756230649457,-528.0,0.00024932,7]
[381476062,1756230649467,-296.0,0.0002494,2]
[381476064,1756230649486,-3391.41,0.00025,7]
[381476066,1756230649507,-1768.12,0.00025,7]
[381476068,1756230649529,-171.0,0.00025,7]
[381476070,1756230649550,-1305.73,0.00025,7]
[381476072,1756230649565,-2241.2,0.00025,7]
[381476074,1756230649575,-528.0,0.00025,7]
[381476076,1756230649585,-654.44584177,0.00025,7]
[381476078,1756230649595,-2684.69,0.00025,7]
[381476080,1756230649604,-161.0,0.00025,7]
[381476082,1756230649614,-926.0,0.00025023,2]
[381476084,1756230649623,-2031.0,0.00025023,2]
[381476086,1756230649633,-1298.0,0.00025023,2]
[381476088,1756230649647,-1658.0,0.00025023,2]
[381476090,1756230649658,-566.0,0.00025023,2]
[381476092,1756230649667,-599.0,0.00025023,2]
[381476094,1756230649676,-4155.0,0.00025023,2]
[381476096,1756230649687,-502.07266514,0.0002504,2]
[381476098,1756230649696,-259.38,0.00025041,2]
[381476100,1756230649705,-163.38670319,0.00025068,30]
[381476102,1756230649714,-1466.39634687,0.00025087,2]
[381476104,1756230649724,-200.0,0.000251,7]
[381476106,1756230649734,-67349.88,0.000251,7]
[381476108,1756230649743,-7341.52731202,0.00025113,4]
[381476110,1756230649753,-6088.06826466,0.00025113,4]
[381476112,1756230649762,-6419.15269785,0.00025113,4]
[381476114,1756230649771,-150.0,0.00025126,4]
[381476116,1756230649780,-972.83011308,0.00025135,2]
[381476118,1756230649789,-393.91581456,0.00025135,2]
[381476121,1756230649808,-259.38,0.00025178,2]
[381476123,1756230649818,-4933.39,0.000252,7]
[381476125,1756230649827,-1106.40031721,0.00025201,2]
[381476127,1756230649838,-1500.0,0.00025201,2]
[381476129,1756230649847,-1500.0,0.00025201,2]
[381476131,1756230649857,-528.0,0.00025205,7]
[381476133,1756230649867,-1181.34,0.00025213,7]
[381476135,1756230649876,-2000.0,0.00025222,2]
[381476137,1756230649886,-259.37852965,0.00025315,2]
[381476139,1756230649896,-1000.0,0.00025321,2]
[381476141,1756230649905,-186.04,0.00025342,2]
[381476143,1756230649915,-1500.0,0.00025377,2]
[381476145,1756230649925,-16988.1036592,0.00025378,7]
[381476147,1756230649935,-7341.52731202,0.00025386,4]
[381476149,1756230649951,-6088.06826466,0.00025386,4]
[381476151,1756230649962,-6419.15269785,0.00025386,4]
[381476153,1756230649971,-643.56380302,0.00025418,2]
[381476155,1756230649982,-1000.0,0.00025421,2]
[381476157,1756230649992,-1000.0,0.00025421,2]
[381476159,1756230650002,-1000.0,0.00025421,2]
[381476161,1756230650012,-1000.0,0.00025421,2]
[381476163,1756230650022,-500.93939924,0.00025421,2]
[381476165,1756230650032,-151.0,0.00025434,2]
[381476167,1756230650042,-156.587,0.00025434,2]
[381476169,1756230650051,-301.05877429,0.00025434,2]
[381476171,1756230650061,-322.6107,0.00025434,2]
[381476173,1756230650071,-670.58624095,0.00025434,2]
[381476175,1756230650080,-151.0,0.00025434,2]
[381476177,1756230650089,-151.0,0.00025434,2]
[381476179,1756230650099,-200.55954001,0.00025434,2]
[381476181,1756230650108,-2434.74389024,0.00025434,2]
[381476183,1756230650118,-151.0,0.00025434,2]
[381476185,1756230650127,-341.84723564,0.00025434,2]
[381476187,1756230650136,-257.91778498,0.00025434,2]
[381476189,1756230650146,-300.0,0.00025434,2]
[381476191,1756230650155,-548.36854937,0.00025434,2]
[381476193,1756230650165,-300.0,0.00025434,2]
[381476195,1756230650174,-300.0,0.00025434,2]
[381476197,1756230650184,-300.0,0.00025434,2]
[381476199,1756230650194,-300.0,0.00025434,2]
[381476201,1756230650203,-300.0,0.00025434,2]
[381476203,1756230650213,-300.0,0.00025434,2]
[381476205,1756230650223,-151.0,0.00025434,2]
[381476207,1756230650232,-300.0,0.00025434,2]
[381476209,1756230650242,-151.0,0.00025434,2]
[381476211,1756230650251,-300.0,0.00025434,2]
[381476213,1756230650261,-151.0,0.00025434,2]
[381476215,1756230650271,-300.0,0.00025434,2]
[381476217,1756230650280,-151.0,0.00025434,2]
[381476219,1756230650290,-322.0,0.00025434,2]
[381476221,1756230650299,-151.0,0.00025434,2]
[381476223,1756230650309,-150.0,0.00025436,4]
[381476225,1756230650318,-600.0,0.00025452,2]
[381476227,1756230650328,-528.0,0.00025479,7]
[381476229,1756230650338,-2524.82941417,0.00025489,2]
[381476231,1756230650348,-275.53,0.00025505,2]
[381476233,1756230650358,-2618.2481025,0.00025544,2]
[381476235,1756230650367,-23123.16488376,0.00025597,3]
[381476237,1756230650377,-231.183159,0.00025597,7]
[381476239,1756230650387,-231.183159,0.00025597,7]
[381476241,1756230650396,-231.183159,0.00025597,7]
[381476243,1756230650407,-231.183159,0.00025597,7]
[381476245,1756230650417,-151.0,0.00025597,7]
[381476247,1756230650427,-151.0,0.00025597,7]
[381476249,1756230650436,-398.543838,0.00025597,7]
[381476251,1756230650446,-157.198697,0.00025597,7]
[381476253,1756230650456,-151.0,0.00025597,7]
[381476255,1756230650467,-398.543838,0.00025597,7]
[381476257,1756230650477,-398.543838,0.00025597,7]
[381476258,1756230650487,-159.652401,0.00025597,7]
[381476259,1756230650496,-151.869344,0.00025597,7]
[381476260,1756230650505,-159.652401,0.00025597,7]
[381476261,1756230650514,-398.543838,0.00025597,7]
[381476262,1756230650523,-159.652401,0.00025597,7]
[381476263,1756230650533,-153.995177,0.00025597,7]
[381476265,1756230650543,-159.652401,0.00025597,7]
[381476267,1756230650553,-153.995177,0.00025597,7]
[381476269,1756230650563,-151.0,0.00025597,7]
[381476272,1756230650573,-153.995177,0.00025597,7]
[381476274,1756230650587,-151.0,0.00025597,7]
[381476276,1756230650597,-151.0,0.00025597,7]
[381476278,1756230650606,-153.995177,0.00025597,7]
[381476280,1756230650616,-151.0,0.00025597,7]
[381476282,1756230650626,-151.0,0.00025597,7]
[381476284,1756230650636,-151.0,0.00025597,7]
[381476286,1756230650650,-151.0,0.00025597,7]
[381476288,1756230650662,-151.0,0.00025597,7]
[381476291,1756230650672,-151.0,0.00025597,7]
[381476293,1756230650683,-151.0,0.00025597,7]
[381476295,1756230650694,-151.0,0.00025597,7]
[381476297,1756230650703,-151.0,0.00025597,7]
[381476299,1756230650714,-151.0,0.00025597,7]
[381476301,1756230650724,-2715.12328229,0.00025599,2]
[381476303,1756230650735,-4715.90044793,0.00025654,2]
[381476305,1756230650744,-2815.58284374,0.00025654,2]
[381476307,1756230650755,-7341.52731202,0.00025659,4]
[381476309,1756230650764,-6088.06826466,0.00025659,4]
[381476311,1756230650774,-6419.15269785,0.00025659,4]
[381476313,1756230650784,-2919.75940895,0.00025709,2]
[381476315,1756230650794,-296.0,0.0002572,2]
[381476317,1756230650803,-150.0,0.00025746,4]
[381476320,1756230650815,-2000.0,0.00025749,2]
[381476322,1756230650825,-2000.0,0.00025749,2]
[381476324,1756230650835,-528.0,0.00025753,7]
[381476326,1756230650844,-3027.79050709,0.00025764,2]
[381476328,1756230650854,-509.0,0.00025767,2]
[381476330,1756230650865,-2500.0,0.0002577,2]
[381476332,1756230650875,-168.0,0.00025794,2]
[381476334,1756230650885,-30372.91,0.000258,2]
[381476336,1756230650894,-151.0,0.00025819,7]
[381476338,1756230650904,-151.0,0.00025819,7]
[381476340,1756230650914,-595.097099,0.00025819,7]
[381476342,1756230650924,-595.097099,0.00025819,7]
[381476344,1756230650934,-595.097099,0.00025819,7]
[381476346,1756230650944,-595.097099,0.00025819,7]
[381476348,1756230650954,-540.578919,0.00025819,7]
[381476351,1756230650964,-540.578919,0.00025819,7]
[381476353,1756230650974,-540.578919,0.00025819,7]
[381476355,1756230650984,-151.0,0.00025819,7]
[381476357,1756230650993,-151.0,0.00025819,7]
[381476359,1756230651003,-540.578919,0.00025819,7]
[381476361,1756230651013,-151.0,0.00025819,7]
[381476363,1756230651023,-151.0,0.00025819,7]
[381476365,1756230651033,-151.0,0.00025819,7]
[381476367,1756230651043,-479.173329,0.00025819,7]
[381476369,1756230651052,-479.173329,0.00025819,7]
[381476371,1756230651062,-181.105141,0.00025819,7]
[381476373,1756230651073,-479.173329,0.00025819,7]
[381476375,1756230651083,-181.105141,0.00025819,7]
[381476377,1756230651093,-479.173329,0.00025819,7]
[381476379,1756230651103,-181.105141,0.00025819,7]
[381476381,1756230651113,-181.105141,0.00025819,7]
[381476384,1756230651123,-877.356607,0.00025819,7]
[381476386,1756230651132,-877.356607,0.00025819,7]
[381476388,1756230651142,-877.356607,0.00025819,7]
[381476390,1756230651152,-877.356607,0.00025819,7]
[381476392,1756230651164,-151.0,0.00025819,7]
[381476394,1756230651175,-151.0,0.00025819,7]
[381476396,1756230651184,-151.0,0.00025819,7]
[381476398,1756230651194,-3139.81875585,0.00025819,2]
[381476400,1756230651204,-1500.0,0.00025868,2]
[381476402,1756230651214,-151.0,0.00025874,7]
[381476404,1756230651224,-151.0,0.00025874,7]
[381476406,1756230651233,-171.989765,0.00025874,7]
[381476408,1756230651243,-151.0,0.00025874,7]
[381476409,1756230651253,-171.989765,0.00025874,7]
[381476410,1756230651262,-151.0,0.00025874,7]
[381476411,1756230651272,-218.70818,0.00025874,7]
[381476412,1756230651282,-218.70818,0.00025874,7]
[381476413,1756230651291,-171.989765,0.00025874,7]
[381476414,1756230651301,-151.0,0.00025874,7]
[381476415,1756230651310,-171.989765,0.00025874,7]
[381476416,1756230651322,-218.70818,0.00025874,7]
[381476417,1756230651331,-218.70818,0.00025874,7]
[381476418,1756230651341,-151.0,0.00025874,7]
[381476419,1756230651351,-151.0,0.00025874,7]
[381476420,1756230651360,-1449.758194,0.00025874,7]
[381476421,1756230651370,-552.98179,0.00025874,7]
[381476422,1756230651379,-1449.758194,0.00025874,7]
[381476423,1756230651389,-552.98179,0.00025874,7]
[381476424,1756230651398,-1449.758194,0.00025874,7]
[381476425,1756230651407,-1449.758194,0.00025874,7]
[381476426,1756230651418,-151.0,0.00025874,7]
[381476427,1756230651427,-552.98179,0.00025874,7]
[381476428,1756230651438,-552.98179,0.00025874,7]
[381476429,1756230651448,-1673.775936,0.00025874,7]
[381476431,1756230651458,-1673.775936,0.00025874,7]
[381476433,1756230651467,-1673.775936,0.00025874,7]
[381476435,1756230651478,-1673.775936,0.00025874,7]
[381476437,1756230651488,-151.0,0.00025874,7]
[381476439,1756230651498,-151.0,0.00025874,7]
[381476442,1756230651507,-3255.99204981,0.00025874,2]
[381476444,1756230651518,-168.0,0.00025885,2]
[381476446,1756230651528,-171.0,0.0002589,7]
[381476448,1756230651538,-528.0,0.0002589,7]
[381476450,1756230651548,-1305.73,0.000259,7]
[381476452,1756230651557,-1800.0,0.00025925,2]
[381476454,1756230651567,-3000.0,0.00025925,2]
[381476456,1756230651577,-3376.46375566,0.00025929,2]
[381476458,1756230651586,-7341.52731202,0.00025932,4]
[381476460,1756230651596,-6088.06826466,0.00025932,4]
[381476462,1756230651605,-6419.15269785,0.00025932,4]
[381476464,1756230651615,-168.0,0.00025944,2]
[381476466,1756230651624,-235.4229631,0.00025968,2]
[381476468,1756230651635,-1500.0,0.00025968,2]
[381476470,1756230651647,-150.95868312,0.00025968,2]
[381476472,1756230651658,-1500.0,0.00025968,2]
[381476474,1756230651667,-151.0,0.00025982,2]
[381476476,1756230651679,-151.0,0.00025982,2]
[381476478,1756230651688,-151.60989685,0.00025982,2]
[381476480,1756230651698,-151.0,0.00025984,7]
[381476483,1756230651708,-151.0,0.00025984,7]
[381476485,1756230651719,-151.0,0.00025984,7]
[381476487,1756230651728,-151.0,0.00025984,7]
[381476489,1756230651738,-151.0,0.00025984,7]
[381476491,1756230651747,-151.0,0.00025984,7]
[381476493,1756230651758,-151.0,0.00025984,7]
[381476495,1756230651767,-151.0,0.00025984,7]
[381476497,1756230651777,-151.0,0.00025984,7]
[381476499,1756230651787,-151.0,0.00025984,7]
[381476501,1756230651797,-3501.39291461,0.00025984,2]
[381476503,1756230651806,-587.10090826,0.0002599,2]
[381476505,1756230651816,-3391.41,0.00026,7]
[381476507,1756230651826,-1768.12,0.00026,7]
[381476509,1756230651836,-4421.34490359,0.00026,2]
[381476511,1756230651846,-4433.65,0.00026,2]
[381476513,1756230651856,-2668.11923443,0.00026,2]
[381476515,1756230651866,-211.59058449,0.00026,2]
[381476517,1756230651876,-844.63891918,0.00026,3]
[381476519,1756230651886,-151.0,0.00026,7]
[381476522,1756230651896,-151.0,0.00026,7]
[381476524,1756230651908,-151.0,0.00026,7]
[381476526,1756230651917,-151.0,0.00026,7]
[381476528,1756230651927,-151.0,0.00026,7]
[381476530,1756230651938,-151.0,0.00026,7]
[381476532,1756230651948,-151.0,0.00026,7]
[381476534,1756230651958,-151.0,0.00026,7]
[381476536,1756230651968,-151.0,0.00026,7]
[381476538,1756230651978,-151.0,0.00026,7]
[381476540,1756230651988,-151.0,0.00026,7]
[381476575,1756230651998,-151.0,0.00026,7]
[381476582,1756230652360,-151.878341,0.00026,7]
[381476584,1756230652371,-1057.85,0.00026,2]
[381476586,1756230652380,-2241.2,0.00026,7]
[381476588,1756230652390,-2684.69,0.00026,7]
[381476590,1756230652399,-4000.0,0.00026,4]
[381476592,1756230652409,-600.0,0.00026,2]
[381476594,1756230652419,-528.0,0.00026027,7]
[381476596,1756230652429,-150.0,0.00026057,4]
[381476598,1756230652438,-67349.88,0.000261,7]
[381476600,1756230652448,-301.737078,0.000261,7]
[381476602,1756230652458,-151.0,0.000261,7]
[381476604,1756230652468,-301.737078,0.000261,7]
[381476606,1756230652477,-301.737078,0.000261,7]
[381476608,1756230652487,-151.0,0.000261,7]
[381476610,1756230652498,-181.265247,0.000261,7]
[381476612,1756230652507,-2117.687934,0.000261,7]
[381476614,1756230652517,-151.0,0.000261,7]
[381476616,1756230652526,-2117.687934,0.000261,7]
[381476618,1756230652536,-301.737078,0.000261,7]
[381476620,1756230652546,-152.495092,0.000261,7]
[381476622,1756230652556,-2117.687934,0.000261,7]
[381476624,1756230652565,-535.867484,0.000261,7]
[381476626,1756230652574,-2117.687934,0.000261,7]
[381476628,1756230652584,-152.495092,0.000261,7]
[381476630,1756230652595,-1012.644171,0.000261,7]
[381476632,1756230652604,-535.867484,0.000261,7]
[381476634,1756230652614,-152.495092,0.000261,7]
[381476636,1756230652624,-151.0,0.000261,7]
[381476638,1756230652635,-1012.644171,0.000261,7]
[381476640,1756230652647,-535.867484,0.000261,7]
[381476642,1756230652657,-1012.644171,0.000261,7]
[381476644,1756230652667,-151.0,0.000261,7]
[381476646,1756230652676,-152.495092,0.000261,7]
[381476648,1756230652686,-535.867484,0.000261,7]
[381476650,1756230652696,-151.0,0.000261,7]
[381476652,1756230652705,-1012.644171,0.000261,7]
[381476654,1756230652718,-158.024936,0.000261,7]
[381476656,1756230652728,-376.020996,0.000261,7]
[381476658,1756230652737,-151.0,0.000261,7]
[381476660,1756230652747,-158.024936,0.000261,7]
[381476662,1756230652757,-158.024936,0.000261,7]
[381476664,1756230652766,-376.020996,0.000261,7]
[381476666,1756230652775,-701.738346,0.000261,7]
[381476668,1756230652785,-158.024936,0.000261,7]
[381476670,1756230652795,-376.020996,0.000261,7]
[381476672,1756230652804,-701.738346,0.000261,7]
[381476674,1756230652814,-376.020996,0.000261,7]
[381476676,1756230652823,-701.738346,0.000261,7]
[381476678,1756230652833,-151.0,0.000261,7]
[381476680,1756230652842,-701.738346,0.000261,7]
[381476682,1756230652852,-151.0,0.000261,7]
[381476684,1756230652861,-478.340523,0.000261,7]
[381476686,1756230652871,-157.800588,0.000261,7]
[381476688,1756230652880,-151.0,0.000261,7]
[381476690,1756230652889,-478.340523,0.000261,7]
[381476692,1756230652899,-157.800588,0.000261,7]
[381476694,1756230652908,-304.028626,0.000261,7]
[381476696,1756230652918,-240.434914,0.000261,7]
[381476698,1756230652927,-478.340523,0.000261,7]
[381476700,1756230652936,-157.800588,0.000261,7]
[381476702,1756230652946,-240.434914,0.000261,7]
[381476703,1756230652955,-478.340523,0.000261,7]
[381476705,1756230652964,-157.800588,0.000261,7]
[381476707,1756230652973,-304.028626,0.000261,7]
[381476709,1756230652983,-240.434914,0.000261,7]
[381476711,1756230652992,-304.028626,0.000261,7]
[381476713,1756230653002,-240.434914,0.000261,7]
[381476715,1756230653011,-304.028626,0.000261,7]
[381476717,1756230653021,-151.0,0.000261,7]
[381476719,1756230653030,-151.0,0.000261,7]
[381476721,1756230653040,-151.0,0.000261,7]
[381476723,1756230653049,-151.0,0.000261,7]
[381476725,1756230653058,-321.734193,0.000261,7]
[381476727,1756230653068,-864.305514,0.000261,7]
[381476729,1756230653078,-321.734193,0.000261,7]
[381476731,1756230653087,-864.305514,0.000261,7]
[381476733,1756230653097,-176.842673,0.000261,7]
[381476735,1756230653106,-321.734193,0.000261,7]
[381476737,1756230653116,-158.692368,0.000261,7]
[381476739,1756230653125,-864.305514,0.000261,7]
[381476741,1756230653135,-176.842673,0.000261,7]
[381476743,1756230653144,-151.0,0.000261,7]
[381476745,1756230653154,-321.734193,0.000261,7]
[381476747,1756230653163,-176.842673,0.000261,7]
[381476749,1756230653173,-151.0,0.000261,7]
[381476751,1756230653182,-158.692368,0.000261,7]
[381476753,1756230653192,-151.0,0.000261,7]
[381476755,1756230653202,-176.842673,0.000261,7]
[381476757,1756230653212,-158.692368,0.000261,7]
[381476759,1756230653222,-276.051864,0.000261,7]
[381476761,1756230653232,-864.305514,0.000261,7]
[381476763,1756230653242,-158.692368,0.000261,7]
[381476764,1756230653252,-151.0,0.000261,7]
[381476766,1756230653262,-498.691569,0.000261,7]
[381476768,1756230653272,-151.0,0.000261,7]
[381476770,1756230653282,-498.691569,0.000261,7]
[381476772,1756230653293,-498.691569,0.000261,7]
[381476774,1756230653303,-498.691569,0.000261,7]
[381476776,1756230653313,-168.0,0.00026129,2]
[381476778,1756230653322,-4933.39,0.000262,7]
[381476780,1756230653332,-7341.52731202,0.00026205,4]
[381476782,1756230653341,-6088.06826466,0.00026205,4]
[381476784,1756230653351,-6419.15269785,0.00026205,4]
[381476786,1756230653361,-1078.65,0.00026232,2]
[381476788,1756230653372,-170.95,0.00026232,2]
[381476790,1756230653381,-168.0,0.00026247,2]
[381476792,1756230653392,-23123.16488376,0.00026293,5]
[381476794,1756230653403,-2500.0,0.00026297,2]
[381476796,1756230653415,-2500.0,0.00026297,2]
[381476798,1756230653425,-3000.0,0.00026318,2]
[381476800,1756230653436,-150.0,0.00026367,4]
[381476802,1756230653446,-275.53,0.00026395,2]
[381476804,1756230653455,-26872.21858646,0.000264,2]
[381476806,1756230653465,-3471.03062643,0.00026408,2]
[381476808,1756230653475,-1220.12734939,0.00026416,2]
[381476810,1756230653484,-1500.0,0.00026473,2]
[381476812,1756230653494,-7341.52731202,0.00026478,4]
[381476814,1756230653504,-6088.06826466,0.00026478,4]
[381476816,1756230653513,-6419.15269785,0.00026478,4]
[381476818,1756230653524,-46834.75157463,0.000265,2]
[381476820,1756230653533,-296.0,0.0002651,2]
[381476822,1756230653543,-2000.0,0.00026516,2]
[381476824,1756230653553,-1153.2398906,0.00026516,2]
[381476826,1756230653563,-1000.0,0.00026523,2]
[381476828,1756230653572,-156.92465471,0.0002653,2]
[381476830,1756230653581,-159.81543481,0.0002653,2]
[381476832,1756230653591,-600.0,0.00026548,2]
[381476834,1756230653600,-1181.34,0.00026647,7]
[381476836,1756230653609,-733.32410921,0.0002665,2]
[381476838,1756230653618,-226.8,0.00026676,2]
[381476840,1756230653627,-150.0,0.00026677,4]
[381476842,1756230653641,-30372.91,0.000267,2]
[381476844,1756230653650,-7341.52731202,0.00026751,4]
[381476846,1756230653660,-6088.06826466,0.00026751,4]
[381476848,1756230653669,-6419.15269785,0.00026751,4]
[381476850,1756230653679,-2000.0,0.00026799,2]
[381476852,1756230653688,-300.0,0.00026799,10]
[381476854,1756230653697,-300.0,0.00026799,10]
[381476856,1756230653707,-300.0,0.00026799,10]
[381476857,1756230653720,-300.0,0.00026799,10]
[381476859,1756230653730,-406595.49437641,0.000268,2]
[381476861,1756230653740,-151.0,0.000268,7]